bitfinex/quotes_BTCUSD_20241211
["timestamp","ask_amount","ask_price","bid_price","bid_amount"]
[1733917163560,0.30126529,98351.0,98350.0,0.00023894]
[1733917164019,0.27627726,98351.0,98350.0,0.00023894]
[1733917164253,0.28227726,98351.0,98350.0,0.00023894]
[1733917164643,0.27627726,98351.0,98350.0,0.00023894]
[1733917165000,0.29127726,98351.0,98350.0,0.00123894]
[1733917165404,0.28227726,98351.0,98350.0,0.00023894]
[1733917165773,0.28642412,98351.0,98350.0,0.00123894]
[1733917166184,0.28618895,98351.0,98350.0,0.00123894]
[1733917166597,0.27718895,98351.0,98350.0,0.00023894]
[1733917166839,0.28618895,98351.0,98350.0,0.00123894]
[1733917167036,0.28018895,98351.0,98350.0,0.00123894]
[1733917167243,0.28718895,98351.0,98350.0,0.00123894]
[1733917167903,0.28018895,98351.0,98350.0,0.00123894]
[1733917168072,0.27518895,98351.0,98350.0,0.00023894]
[1733917168506,0.28318895,98351.0,98350.0,0.00123894]
[1733917168708,0.27518895,98351.0,98350.0,0.00023894]
[1733917169068,0.28318895,98351.0,98350.0,0.00123894]
[1733917169273,0.28318787,98351.0,98350.0,0.00123894]
[1733917169684,0.28636764,98351.0,98350.0,0.00123894]
[1733917170354,0.28236764,98351.0,98350.0,0.00123894]
[1733917170557,0.28636764,98351.0,98350.0,0.00123894]
[1733917170764,0.28318786,98351.0,98350.0,0.00123894]
[1733917171260,0.27518786,98351.0,98350.0,0.00023894]
[1733917171668,0.28218786,98351.0,98350.0,0.00123894]
[1733917172025,0.282423,98351.0,98350.0,0.00123894]
[1733917173359,0.28218786,98351.0,98350.0,0.00123894]
[1733917175692,0.27459265,98351.0,98350.0,0.00123894]
[1733917175863,0.28217724,98351.0,98350.0,0.00123894]
[1733917176287,0.28217724,98351.0,98350.0,0.08383894]
[1733917178932,0.28217911,98351.0,98350.0,0.08383894]
[1733917179374,0.27141283,98351.0,98350.0,0.08383894]
[1733917179589,0.27900016,98351.0,98350.0,0.08383894]
[1733917180307,0.023,98349.0,98340.0,0.0001718]
[1733917180468,0.023,98344.0,98342.0,0.00010627]
[1733917180627,0.43889665,98343.0,98342.0,0.00010627]
[1733917180850,0.45662615,98343.0,98342.0,0.00010627]
[1733917181504,0.31997789,98343.0,98342.0,0.00010627]
[1733917181936,0.88378808,98343.0,98342.0,0.00110627]
[1733917182151,0.63312239,98343.0,98342.0,0.00110627]
[1733917182337,0.64720998,98343.0,98342.0,0.00210627]
[1733917182992,0.67750959,98343.0,98342.0,0.00210627]
[1733917183452,0.47796678,98343.0,98342.0,0.00210627]
[1733917183625,0.45260603,98343.0,98342.0,0.00210627]
[1733917184193,0.34642623,98343.0,98342.0,0.00210627]
[1733917185259,0.35685335,98343.0,98342.0,0.00210627]
[1733917185454,0.35690343,98343.0,98342.0,0.00210627]
[1733917186283,0.57070622,98343.0,98342.0,0.00210627]
[1733917186488,0.4797215,98343.0,98329.0,6e-05]
[1733917186657,0.15,98334.0,98331.0,0.0001653]
[1733917186864,0.15,98332.0,98331.0,0.0001653]
[1733917187066,0.29486458,98332.0,98331.0,0.0001653]
[1733917187269,0.29384823,98332.0,98331.0,0.0001653]
[1733917188286,0.33142955,98332.0,98331.0,0.0001653]
[1733917188489,0.34140411,98332.0,98331.0,0.0001653]
[1733917188688,0.34640411,98332.0,98331.0,0.0001653]
[1733917189062,0.33916737,98332.0,98331.0,0.0001653]
[1733917189471,0.33416737,98332.0,98331.0,0.0001653]
[1733917189676,0.33716737,98332.0,98331.0,0.0001653]
[1733917190111,0.33416737,98332.0,98331.0,0.0001653]
[1733917190378,0.36580596,98332.0,98305.0,0.0782]
[1733917190631,0.15,98325.0,98305.0,0.0782]
[1733917190840,0.15,98323.0,98305.0,0.0782]
[1733917190993,0.15,98321.0,98305.0,0.0782]
[1733917191225,0.11292561,98320.0,98305.0,0.0782]
[1733917191367,0.15760037,98319.0,98305.0,0.0782]
[1733917191572,0.15,98317.0,98305.0,0.0782]
[1733917191767,0.00022929,98315.0,98305.0,0.09887229]
[1733917192014,0.00022929,98315.0,98306.0,0.5365]
[1733917192015,0.00760037,98314.0,98306.0,0.5365]
[1733917192221,0.00760037,98314.0,98313.0,0.0377234]
[1733917193204,0.009,98319.0,98315.0,0.0795]
[1733917193205,0.01660037,98319.0,98315.0,0.0795]
[1733917193382,0.009,98319.0,98316.0,0.023]
[1733917193589,0.009,98319.0,98316.0,0.02982142]
[1733917194036,0.00760037,98326.0,98316.0,0.02982142]
[1733917194237,0.15,98324.0,98316.0,0.02982142]
[1733917194445,0.15760037,98323.0,98316.0,0.02982142]
[1733917195021,0.002,98319.0,98316.0,0.02982142]
[1733917195195,0.15760037,98323.0,98316.0,0.02982142]
[1733917196282,0.001,98319.0,98316.0,0.02982142]
[1733917196793,0.15760037,98323.0,98316.0,0.02982142]
[1733917196998,0.17758702,98323.0,98316.0,0.02982142]
[1733917197530,0.15760037,98323.0,98316.0,0.02982142]
[1733917197732,0.001,98319.0,98316.0,0.02982142]
[1733917197914,0.002,98319.0,98316.0,0.02982142]
[1733917198086,0.001,98319.0,98316.0,0.02982142]
[1733917198897,0.002,98319.0,98316.0,0.02982142]
[1733917199128,0.001,98319.0,98316.0,0.02982142]
[1733917199344,0.15759597,98323.0,98316.0,0.02982142]
[1733917199500,0.15859597,98323.0,98316.0,0.02982142]
[1733917199700,0.001,98319.0,98316.0,0.02982142]
[1733917201029,0.00759597,98322.0,98316.0,0.02982142]
[1733917201227,0.001,98319.0,98316.0,0.02982142]
[1733917201583,0.00759597,98322.0,98316.0,0.02982142]
[1733917201830,0.18798435,98323.0,98316.0,0.02982142]
[1733917201831,0.19558032,98323.0,98316.0,0.02982142]
[1733917202030,0.001,98319.0,98316.0,0.02982142]
[1733917202591,0.00759597,98318.0,98316.0,0.02982142]
[1733917203002,0.00759597,98320.0,98316.0,0.02982142]
[1733917203220,0.00759597,98319.0,98316.0,0.02982142]
[1733917203450,0.00759597,98318.0,98316.0,0.02982142]
[1733917203661,0.00759597,98317.0,98316.0,0.02982142]
[1733917203879,0.00759938,98319.0,98316.0,0.02982142]
[1733917204169,0.00759938,98318.0,98316.0,0.02982142]
[1733917204341,0.00759938,98317.0,98316.0,0.02982142]
[1733917204561,0.00759938,98318.0,98316.0,0.02982142]
[1733917204809,0.00759938,98317.0,98316.0,0.02982142]
[1733917204982,0.00759938,98318.0,98316.0,0.02982142]
[1733917205156,0.00759938,98317.0,98316.0,0.02982142]
[1733917205486,0.00759938,98317.0,98316.0,0.0304847]
[1733917206987,0.00759938,98317.0,98316.0,0.0314847]
[1733917207194,0.00760343,98317.0,98316.0,0.03183843]
[1733917207838,0.00760343,98317.0,98316.0,0.03009757]
[1733917208500,0.11292867,98317.0,98316.0,0.00608056]
[1733917208708,0.14410272,98317.0,98316.0,0.00608056]
[1733917209339,0.14410272,98317.0,98316.0,0.00508056]
[1733917210201,0.12509415,98317.0,98316.0,0.00508056]
[1733917210413,0.14413083,98317.0,98316.0,0.00508056]
[1733917210614,0.15558212,98317.0,98316.0,0.00508056]
[1733917210823,0.18604087,98317.0,98316.0,0.00508056]
[1733917211469,0.18704087,98317.0,98316.0,0.00508056]
[1733917211677,0.18604087,98317.0,98313.0,0.0147234]
[1733917211886,0.12512342,98316.0,98313.0,0.0147234]
[1733917212115,0.01979818,98315.0,98314.0,0.00524393]
[1733917212333,0.00783064,98315.0,98314.0,0.00524393]
[1733917212542,0.00761468,98315.0,98314.0,0.00524393]
[1733917215945,0.00021604,98316.0,98314.0,0.00524393]
[1733917216154,0.11294122,98315.0,98314.0,0.00524393]
[1733917216572,0.11315726,98315.0,98314.0,0.00524393]
[1733917216779,0.11294122,98315.0,98314.0,0.00524393]
[1733917217186,0.10532524,98315.0,98314.0,0.00524393]
[1733917217391,0.11294112,98315.0,98314.0,0.00524393]
[1733917217590,0.10532524,98315.0,98314.0,0.00524393]
[1733917217794,0.1129418,98315.0,98314.0,0.00524393]
[1733917218201,0.1251283,98315.0,98314.0,0.00524393]
[1733917219769,0.14417523,98315.0,98314.0,0.00524393]
[1733917223869,0.14418436,98315.0,98314.0,0.00524393]
[1733917224938,0.13199224,98315.0,98314.0,0.00524393]
[1733917226312,0.22316336,98315.0,98314.0,0.00524393]
[1733917226526,0.13199224,98315.0,98314.0,0.00524393]
[1733917226721,0.13199224,98315.0,98313.0,0.0147234]
[1733917226927,0.00762007,98314.0,98313.0,0.0147234]
[1733917227179,0.02666836,98314.0,98313.0,0.0147234]
[1733917227592,0.0266689,98314.0,98313.0,0.0147234]
[1733917229713,0.0266689,98314.0,98313.0,0.0157234]
[1733917230322,0.02666975,98314.0,98313.0,0.0157234]
[1733917231202,0.28199499,98314.0,98313.0,0.0157234]
[1733917231458,0.2820042,98314.0,98313.0,0.0157234]
[1733917231861,0.15,98313.0,98308.0,0.0822]
[1733917232004,0.22342981,98314.0,98308.0,0.0822]
[1733917232005,0.15,98311.0,98308.0,0.0822]
[1733917232352,0.1320042,98310.0,98308.0,0.0822]
[1733917232508,0.02667896,98309.0,98308.0,0.0822]
[1733917233109,0.1320042,98309.0,98308.0,0.0832]
[1733917233334,0.1320042,98309.0,98308.0,0.001]
[1733917233870,0.1320042,98309.0,98308.0,0.01166081]
[1733917233871,0.13200328,98309.0,98308.0,0.01166081]
[1733917234076,0.13200328,98309.0,98308.0,0.001]
[1733917234289,0.13200328,98309.0,98308.0,0.01166081]
[1733917234493,0.13200328,98309.0,98308.0,0.001]
[1733917234638,0.13200328,98309.0,98308.0,0.01066081]
[1733917234840,0.13200328,98309.0,98302.0,0.076]
[1733917235046,0.00014177,98304.0,98303.0,0.01066986]
[1733917235258,0.02681981,98304.0,98303.0,0.01066986]
[1733917235810,0.00776433,98304.0,98303.0,0.01066986]
[1733917236988,0.00776433,98304.0,98302.0,0.076]
[1733917236989,0.00776434,98304.0,98302.0,0.076]
[1733917237167,0.00762256,98303.0,98302.0,0.076]
[1733917238688,0.00762256,98303.0,98294.0,0.5365]
[1733917238689,0.15,98302.0,98294.0,0.077]
[1733917238890,0.15,98302.0,98284.0,0.5365]
[1733917238891,0.2629478,98301.0,98289.0,0.0792]
[1733917239019,0.3543659,98301.0,98289.0,0.0792]
[1733917239371,0.3543411,98301.0,98289.0,0.0792]
[1733917239577,0.2629478,98301.0,98289.0,0.0792]
[1733917239749,0.3543411,98301.0,98289.0,0.0792]
[1733917239943,0.41606677,98301.0,98300.0,0.00033688]
[1733917240196,0.7753681,98301.0,98300.0,0.00033688]
[1733917240354,0.9263427,98301.0,98300.0,0.00033688]
[1733917240754,0.67474723,98301.0,98300.0,0.00033688]
[1733917240965,0.66202151,98301.0,98300.0,0.00033688]
[1733917241328,0.32467347,98301.0,98300.0,0.00033688]
[1733917241732,0.15,98300.0,98289.0,0.0792]
[1733917241938,0.24133579,98298.0,98289.0,0.0792]
[1733917242233,0.15,98296.0,98289.0,0.0792]
[1733917242467,0.15,98294.0,98289.0,0.0792]
[1733917242671,0.15,98292.0,98289.0,0.0792]
[1733917242877,0.16981402,98292.0,98289.0,0.0792]
[1733917243492,0.16398583,98292.0,98289.0,0.0792]
[1733917243719,0.18304112,98292.0,98289.0,0.0792]
[1733917244528,0.29843606,98292.0,98289.0,0.0792]
[1733917246635,0.29842062,98292.0,98289.0,0.0792]
[1733917247050,0.29201987,98292.0,98289.0,0.0792]
[1733917247260,0.29838314,98292.0,98289.0,0.0792]
[1733917248098,0.30347375,98292.0,98289.0,0.0792]
[1733917249983,0.32249391,98292.0,98289.0,0.0792]
[1733917250820,0.3034761,98292.0,98289.0,0.0792]
[1733917252335,0.3034761,98292.0,98284.0,0.5365]
[1733917253230,0.27684882,98292.0,98284.0,0.5365]
[1733917253438,0.32250015,98292.0,98284.0,0.5365]
[1733917253869,0.15,98291.0,98284.0,0.5365]
[1733917254085,0.15,98289.0,98284.0,0.53705081]
[1733917254285,0.15,98287.0,98285.0,0.01123465]
[1733917254489,0.0317209,98286.0,98285.0,0.01123465]
[1733917255746,0.01269902,98286.0,98285.0,0.01123465]
[1733917256174,0.11802426,98286.0,98285.0,0.01123465]
[1733917256420,0.38570404,98286.0,98285.0,0.01123465]
[1733917256604,0.15,98285.0,98271.0,0.0004]
[1733917256843,0.15,98283.0,98272.0,0.0795]
[1733917257049,0.15,98281.0,98272.0,0.0795]
[1733917257261,0.11395,98282.0,98273.0,0.0477]
[1733917257262,0.15,98279.0,98273.0,0.0477]
[1733917257466,0.01902188,98282.0,98273.0,0.0477]
[1733917257467,0.15,98277.0,98274.0,0.00939276]
[1733917257705,0.01269902,98276.0,98274.0,0.00939276]
[1733917257994,0.00509061,98275.0,98274.0,0.00939276]
[1733917259675,0.01269674,98275.0,98274.0,0.00939276]
[1733917260588,0.01369674,98275.0,98272.0,0.0795]
[1733917260794,0.01369674,98275.0,98274.0,0.00939709]
[1733917260795,0.001,98275.0,98274.0,0.00939709]
[1733917261001,0.01369865,98275.0,98273.0,0.5365]
[1733917261207,0.01369865,98275.0,98274.0,0.00939709]
[1733917261208,0.002,98275.0,98274.0,0.00939709]
[1733917261423,0.01469892,98275.0,98274.0,0.00939709]
[1733917261637,0.01269892,98275.0,98274.0,0.00939709]
[1733917261841,0.01369892,98275.0,98274.0,0.00939709]
[1733917262048,0.01469892,98275.0,98274.0,0.00939709]
[1733917262267,0.01369892,98275.0,98274.0,0.00939709]
[1733917262679,0.01469892,98275.0,98274.0,0.00939709]
[1733917262888,0.0337208,98275.0,98274.0,0.00939709]
[1733917263301,0.0327208,98275.0,98274.0,0.00939709]
[1733917263658,0.0337208,98275.0,98274.0,0.00939709]
[1733917263861,0.01469892,98275.0,98274.0,0.54589709]
[1733917264086,0.27104051,98275.0,98274.0,0.54589709]
[1733917264289,0.28904604,98275.0,98274.0,0.54589709]
[1733917264926,0.28804604,98275.0,98274.0,0.54589709]
[1733917265250,0.01469892,98275.0,98274.0,0.54589709]
[1733917265488,0.01469892,98275.0,98274.0,0.62529709]
[1733917265656,0.01369892,98275.0,98274.0,0.62529709]
[1733917265863,0.01569892,98275.0,98274.0,0.62529709]
[1733917266065,0.03472053,98275.0,98274.0,0.62529709]
[1733917266268,0.05374126,98275.0,98274.0,0.62529709]
[1733917266445,0.05274126,98275.0,98274.0,0.62529709]
[1733917266849,0.05374126,98275.0,98274.0,0.08879709]
[1733917267871,0.03471965,98275.0,98274.0,0.08879709]
[1733917268075,0.01569892,98275.0,98274.0,0.08879709]
[1733917268289,0.27102416,98275.0,98274.0,0.00939709]
[1733917268499,0.29005473,98275.0,98274.0,0.00939709]
[1733917268698,0.15,98274.0,98272.0,0.5365]
[1733917269039,0.26802416,98273.0,98272.0,0.52469859]
[1733917269612,0.26802416,98273.0,98272.0,0.53410602]
[1733917270030,0.28705473,98273.0,98272.0,0.00940743]
[1733917270252,0.28705473,98273.0,98271.0,0.0004]
[1733917270465,0.03173764,98272.0,98271.0,0.0004]
[1733917270668,0.13706288,98272.0,98271.0,0.0004]
[1733917271913,0.11802416,98272.0,98271.0,0.0004]
[1733917273136,0.01269892,98272.0,98271.0,0.0004]
[1733917273465,0.03173768,98272.0,98271.0,0.00982448]
[1733917274231,0.03173768,98272.0,98271.0,0.08842448]
[1733917274437,0.01269892,98272.0,98271.0,0.13722448]
[1733917274884,0.00761635,98272.0,98271.0,0.13722448]
[1733917275086,0.01270765,98272.0,98271.0,0.13722448]
[1733917275258,0.01270765,98272.0,98271.0,0.66192307]
[1733917275491,0.0110913,98272.0,98271.0,0.66192307]
[1733917275684,0.0050913,98272.0,98271.0,0.66192307]
[1733917276140,0.0050913,98272.0,98271.0,0.83492307]
[1733917276141,0.0080913,98272.0,98271.0,0.83492307]
[1733917276545,0.0050913,98272.0,98271.0,0.83492307]
[1733917277068,0.0070913,98272.0,98271.0,0.83492307]
[1733917277474,0.0050913,98272.0,98271.0,0.83492307]
[1733917277683,0.00761635,98288.0,98278.0,0.023]
[1733917277916,0.00509034,98285.0,98281.0,0.023]
[1733917278120,0.00509034,98284.0,98282.0,0.0816]
[1733917278321,0.02665786,98289.0,98284.0,0.0816]
[1733917278322,0.01904088,98289.0,98284.0,0.0816]
[1733917278527,0.00509028,98285.0,98284.0,0.0816]
[1733917278939,0.00509028,98285.0,98284.0,0.60629859]
[1733917284554,0.01018038,98285.0,98284.0,0.60629859]
[1733917284720,0.01018038,98285.0,98284.0,0.61629111]
[1733917284920,0.0050901,98285.0,98284.0,0.61629111]
[1733917286282,0.0050901,98285.0,98284.0,0.63620803]
[1733917287311,0.01269853,98285.0,98284.0,0.63620803]
[1733917287475,0.0126931,98285.0,98284.0,0.63620803]
[1733917287677,0.0050901,98285.0,98284.0,0.63620803]
[1733917294524,8.59e-05,98290.0,98284.0,0.63620803]
[1733917294733,0.0050901,98285.0,98284.0,0.63620803]
[1733917297411,8.59e-05,98290.0,98284.0,0.63620803]
[1733917297614,0.00509011,98285.0,98284.0,0.63620803]
[1733917298683,0.00509011,98285.0,98284.0,0.95920803]
[1733917298905,8.59e-05,98290.0,98289.0,0.3992]
[1733917299108,8.59e-05,98290.0,98289.0,0.45867667]
[1733917300349,0.0010859,98290.0,98289.0,0.45867667]
[1733917301390,0.0010859,98290.0,98289.0,0.56400191]
[1733917301598,8.59e-05,98290.0,98289.0,0.56400191]
[1733917301806,0.0010859,98290.0,98289.0,0.56400191]
[1733917302018,0.0010859,98290.0,98289.0,0.56600191]
[1733917302437,0.0020859,98290.0,98289.0,0.56600191]
[1733917303058,0.00760583,98314.0,98299.0,0.173]
[1733917303268,0.00760583,98318.0,98299.0,0.2496]
[1733917303507,4e-05,98319.0,98299.0,0.2496]
[1733917303508,0.00760583,98317.0,98299.0,0.25955857]
[1733917303716,0.00760583,98316.0,98299.0,0.25955857]
[1733917304138,4e-05,98317.0,98299.0,0.25955857]
[1733917304345,0.00760793,98315.0,98299.0,0.25955857]
[1733917304564,4e-05,98316.0,98299.0,0.25955857]
[1733917304775,4e-05,98319.0,98299.0,0.25955857]
[1733917304907,0.00760656,98318.0,98299.0,0.26155857]
[1733917305116,0.00760656,98317.0,98299.0,0.26155857]
[1733917305321,8.59e-05,98320.0,98299.0,0.26155857]
[1733917305322,0.00760656,98316.0,98299.0,0.26155857]
[1733917305556,0.00760656,98315.0,98299.0,0.26155857]
[1733917305761,0.00760656,98314.0,98299.0,0.26155857]
[1733917305969,0.00760656,98317.0,98299.0,0.26155857]
[1733917306169,0.00760656,98316.0,98299.0,0.26155857]
[1733917306401,0.00760656,98315.0,98299.0,0.26155857]
[1733917306571,0.00760656,98314.0,98299.0,0.26355857]
[1733917306872,0.00760656,98317.0,98299.0,0.26355857]
[1733917307040,8.59e-05,98320.0,98299.0,0.26355857]
[1733917307271,0.00764558,98319.0,98299.0,0.26355857]
[1733917307469,0.00760558,98318.0,98299.0,0.28417955]
[1733917307724,0.00760558,98317.0,98299.0,0.28417955]
[1733917307892,0.00760558,98316.0,98299.0,0.28417955]
[1733917308093,0.00760558,98315.0,98299.0,0.28417955]
[1733917308301,0.00760558,98314.0,98299.0,0.11117955]
[1733917308504,0.08204,98319.0,98299.0,0.03457955]
[1733917308505,0.0474,98312.0,98299.0,0.03457955]
[1733917308771,0.00760558,98311.0,98299.0,0.03457955]
[1733917308973,0.0474,98312.0,98299.0,0.55719224]
[1733917308974,0.00517548,98300.0,98299.0,0.55719224]
[1733917309382,0.00517548,98300.0,98299.0,0.55319224]
[1733917309529,0.00517548,98300.0,98299.0,0.55419224]
[1733917309787,0.01278106,98300.0,98299.0,0.55719224]
[1733917310120,0.00517548,98300.0,98299.0,0.55419224]
[1733917310324,0.01278106,98300.0,98299.0,0.55619224]
[1733917310528,0.01278106,98300.0,98299.0,0.55419224]
[1733917310962,0.01278106,98300.0,98299.0,0.55319224]
[1733917312379,0.01278106,98300.0,98299.0,0.53257126]
[1733917313597,0.01278266,98300.0,98299.0,0.53257126]
[1733917313952,0.00517558,98300.0,98299.0,0.53257126]
[1733917314162,0.0127827,98300.0,98299.0,0.53257126]
[1733917316790,0.00517558,98300.0,98299.0,0.53257126]
[1733917317002,0.01278402,98300.0,98299.0,0.53257126]
[1733917317420,0.01278402,98300.0,98299.0,0.61287126]
[1733917318429,0.01914605,98300.0,98299.0,0.61287126]
[1733917318846,0.00517558,98300.0,98299.0,0.61387126]
[1733917319053,0.00517558,98300.0,98299.0,0.78687126]
[1733917319269,8.59e-05,98300.0,98299.0,0.78687126]
[1733917320219,8.59e-05,98300.0,98299.0,0.78587126]
[1733917321082,8.59e-05,98300.0,98299.0,0.61287126]
[1733917321283,0.00517509,98300.0,98299.0,0.61287126]
[1733917321535,0.00517509,98300.0,98299.0,0.61387126]
[1733917321686,0.01914743,98300.0,98299.0,0.61387126]
[1733917321885,0.01914743,98300.0,98299.0,0.61287126]
[1733917322061,0.0115369,98300.0,98299.0,0.61287126]
[1733917322473,0.0115369,98300.0,98299.0,0.61587126]
[1733917322673,0.01914972,98300.0,98299.0,0.61687126]
[1733917323078,0.01914972,98300.0,98299.0,0.61587126]
[1733917323279,0.01914972,98300.0,98299.0,0.61987126]
[1733917323682,0.01914972,98300.0,98299.0,0.61287126]
[1733917323882,0.01914972,98300.0,98299.0,0.61787126]
[1733917324284,0.01914972,98300.0,98299.0,0.61487126]
[1733917324509,0.01914972,98300.0,98299.0,0.61287126]
[1733917324739,0.01914972,98300.0,98299.0,0.61687126]
[1733917325091,0.01914972,98300.0,98299.0,0.61887126]
[1733917326096,0.01914972,98300.0,98299.0,0.61487126]
[1733917326502,0.01914972,98300.0,98299.0,0.61887126]
[1733917326709,0.01914972,98300.0,98299.0,0.61487126]
[1733917327126,0.01914972,98300.0,98299.0,0.61587126]
[1733917327542,0.03132322,98300.0,98299.0,0.61787126]
[1733917327743,0.01914972,98300.0,98299.0,0.61787126]
[1733917327948,0.01914972,98300.0,98299.0,0.61287126]
[1733917328155,0.01914972,98300.0,98299.0,0.63687126]
[1733917328821,0.01914972,98300.0,98299.0,0.63587126]
[1733917329033,0.01914972,98300.0,98299.0,0.63687126]
[1733917329242,0.01914972,98300.0,98299.0,0.64087126]
[1733917329619,0.01914972,98300.0,98299.0,0.63687126]
[1733917330050,0.01914972,98300.0,98299.0,0.63787126]
[1733917330250,0.01914972,98300.0,98299.0,0.63687126]
[1733917330450,0.01914972,98300.0,98299.0,0.63787126]
[1733917330655,0.01914972,98300.0,98299.0,0.63687126]
[1733917330858,0.01915616,98300.0,98299.0,0.63587126]
[1733917331081,0.01279435,98300.0,98299.0,0.63687126]
[1733917331289,0.01279435,98300.0,98299.0,0.63787126]
[1733917332577,0.01279435,98300.0,98299.0,0.63687126]
[1733917332784,0.01279435,98300.0,98299.0,0.63787126]
[1733917333198,0.01915603,98300.0,98299.0,0.61487126]
[1733917333860,0.03134686,98300.0,98299.0,0.61487126]
[1733917334447,0.01915603,98300.0,98299.0,0.61487126]
[1733917335245,0.00770883,98300.0,98299.0,0.61487126]
[1733917335453,0.01407053,98300.0,98299.0,0.61487126]
[1733917336075,0.00770883,98300.0,98299.0,0.61487126]
[1733917336282,0.01407047,98300.0,98299.0,0.61487126]
[1733917336493,0.02626717,98300.0,98299.0,0.61487126]
[1733917336926,0.03135653,98300.0,98299.0,0.61287126]
[1733917337129,0.01915983,98300.0,98299.0,0.61387126]
[1733917337341,0.02015983,98300.0,98299.0,0.61987126]
[1733917337760,0.01915983,98300.0,98299.0,0.61287126]
[1733917337967,0.03236104,98300.0,98299.0,0.62087126]
[1733917338180,0.03236216,98300.0,98299.0,0.62087126]
[1733917338382,0.0201633,98300.0,98299.0,0.62087126]
[1733917339255,0.0191633,98300.0,98299.0,0.61587126]
[1733917339459,0.0191633,98300.0,98299.0,0.61387126]
[1733917339705,0.0191633,98300.0,98299.0,0.61987126]
[1733917339706,0.0201633,98300.0,98299.0,0.61987126]
[1733917339931,0.0191633,98300.0,98299.0,0.61087126]
[1733917340118,0.0191633,98300.0,98299.0,0.61387126]
[1733917340322,0.0201633,98300.0,98299.0,0.61987126]
[1733917340523,0.0191633,98300.0,98299.0,0.61087126]
[1733917340973,0.0191633,98300.0,98299.0,0.61387126]
[1733917341421,0.0201633,98300.0,98299.0,0.61987126]
[1733917341829,0.0138018,98300.0,98299.0,0.61987126]
[1733917342447,0.02600538,98300.0,98299.0,0.61987126]
[1733917342932,0.02500538,98300.0,98299.0,0.61387126]
[1733917343132,0.02500538,98300.0,98299.0,0.61087126]
[1733917343345,0.03136701,98300.0,98299.0,0.61487126]
[1733917343962,0.03136701,98300.0,98299.0,0.61087126]
[1733917344168,0.03136701,98300.0,98299.0,0.53357126]
[1733917344373,0.03236701,98300.0,98299.0,0.53957126]
[1733917344572,0.03236701,98300.0,98299.0,0.53357126]
[1733917344696,0.03136701,98300.0,98299.0,0.53057126]
[1733917344905,8.59e-05,98300.0,98299.0,0.53257126]
[1733917345132,0.02500819,98300.0,98299.0,0.53257126]
[1733917346137,0.02500819,98300.0,98299.0,0.53757126]
[1733917346377,0.02500819,98300.0,98299.0,0.50966641]
[1733917346576,0.02500819,98300.0,98299.0,0.51496872]
[1733917346920,0.17634978,98300.0,98299.0,0.51896872]
[1733917347121,0.17533343,98300.0,98299.0,0.51296872]
[1733917347572,0.19440324,98300.0,98299.0,0.51796872]
[1733917347779,0.19440324,98300.0,98299.0,0.51496872]
[1733917347981,0.19440324,98300.0,98299.0,0.51296872]
[1733917348180,0.19512524,98300.0,98299.0,0.00530231]
[1733917348386,0.19512524,98300.0,98290.0,0.0001716]
[1733917348387,0.19614159,98300.0,98290.0,0.0001716]
[1733917348588,0.13126388,98299.0,98290.0,0.0001716]
[1733917348739,0.01983259,98298.0,98290.0,0.0001716]
[1733917348958,0.12515783,98297.0,98290.0,0.0001716]
[1733917349139,0.01983259,98296.0,98290.0,0.0001716]
[1733917349487,0.12515783,98295.0,98290.0,0.0001716]
[1733917349633,0.01983259,98294.0,98290.0,0.0001716]
[1733917349848,0.13024788,98293.0,98285.0,0.01768399]
[1733917350056,0.02492264,98292.0,98285.0,0.01768399]
[1733917350265,0.12515783,98291.0,98285.0,0.01768399]
[1733917350464,0.01983259,98290.0,98285.0,0.01768399]
[1733917350662,0.01983259,98289.0,98285.0,0.01768399]
[1733917350933,0.01983259,98288.0,98285.0,0.01768399]
[1733917351047,0.01983259,98287.0,98285.0,0.01768399]
[1733917351249,0.10532524,98291.0,98290.0,0.0001716]
[1733917351469,0.12514548,98291.0,98290.0,0.0001716]
[1733917352299,0.01982024,98291.0,98290.0,0.0755716]
[1733917352504,0.01982024,98291.0,98290.0,0.0808988]
[1733917353538,0.01982024,98291.0,98290.0,0.0828988]
[1733917353959,0.01982024,98291.0,98290.0,0.59056521]
[1733917354171,0.01982024,98291.0,98290.0,0.58956521]
[1733917354400,0.01982024,98291.0,98290.0,0.59056521]
[1733917354976,0.01982024,98291.0,98290.0,0.51516521]
[1733917355202,0.03886958,98291.0,98290.0,0.51516521]
[1733917356718,0.01982024,98291.0,98290.0,0.51516521]
[1733917357812,0.01980763,98291.0,98290.0,0.51516521]
[1733917358882,0.03885697,98291.0,98290.0,0.51516521]
[1733917359093,0.01980763,98291.0,98290.0,0.51516521]
[1733917359300,0.03885697,98291.0,98290.0,0.51516521]
[1733917359455,0.04394703,98291.0,98290.0,0.51516521]
[1733917360132,0.04394703,98291.0,98290.0,0.0074988]
[1733917360341,0.04394703,98291.0,98290.0,0.0054988]
[1733917361189,0.04494703,98291.0,98290.0,0.0054988]
[1733917361396,0.03908988,98291.0,98290.0,0.0054988]
[1733917361578,0.06398268,98291.0,98290.0,0.0054988]
[1733917361819,0.02080215,98291.0,98290.0,0.0054988]
[1733917362323,0.01980215,98291.0,98290.0,0.0054988]
[1733917362796,0.01980215,98291.0,98290.0,0.0839988]
[1733917362989,0.00761621,98291.0,98290.0,0.0839988]
[1733917363204,0.00861621,98291.0,98290.0,0.59166521]
[1733917363586,0.00861621,98291.0,98290.0,0.61466521]
[1733917363587,0.002,98291.0,98290.0,0.61466521]
[1733917363843,0.001,98291.0,98290.0,0.61466521]
[1733917364045,8.59e-05,98300.0,98291.0,0.023]
[1733917364425,0.00761673,98299.0,98292.0,0.0054444]
[1733917364654,0.00761673,98298.0,98292.0,0.0054444]
[1733917364859,0.00761673,98297.0,98292.0,0.0054444]
[1733917365034,0.00761673,98296.0,98292.0,0.0054444]
[1733917365341,0.00761673,98295.0,98292.0,0.0054444]
[1733917365601,0.00761673,98294.0,98292.0,0.0054444]
[1733917365840,8.59e-05,98300.0,98292.0,0.0054444]
[1733917366091,0.00761664,98299.0,98293.0,0.00101717]
[1733917366316,0.00761664,98298.0,98294.0,0.50766641]
[1733917366586,0.00761664,98297.0,98295.0,0.00101714]
[1733917366829,8.59e-05,98300.0,98296.0,0.00645428]
[1733917367076,0.00761689,98299.0,98296.0,0.00645428]
[1733917367331,0.00761689,98298.0,98296.0,0.00645428]
[1733917367570,0.01980351,98298.0,98296.0,0.00645428]
[1733917367763,0.01980351,98297.0,98296.0,0.00645428]
[1733917367939,0.02080351,98297.0,98296.0,0.00645428]
[1733917368344,0.01980351,98297.0,98296.0,0.00645428]
[1733917368574,0.01980351,98297.0,98296.0,0.01145428]
[1733917368776,0.01980351,98297.0,98296.0,0.01345428]
[1733917368984,0.01980351,98297.0,98296.0,0.00845428]
[1733917369195,0.02080351,98297.0,98296.0,0.52212069]
[1733917369373,0.02080351,98297.0,98296.0,0.52110357]
[1733917370452,0.02080351,98297.0,98296.0,0.51910357]
[1733917370667,0.001,98297.0,98296.0,0.51910357]